[Event "WYCC 2018 G14"]
[Site "Halkidiki"]
[Date "2018.10.22"]
[Round "4"]
[White "Murzina, Agata"]
[Black "Alimova, Sevinch"]
[Result "1/2-1/2"]
[ECO "B23"]
[WhiteElo "1768"]
[BlackElo "1596"]
[Annotator "NA"]
[PlyCount "92"]
[EventDate "2018.10.20"]
[EventType "swiss"]
[EventCountry "GRE"]
[SourceTitle "playchess.com"]
[Source "ChessBase"]
[SourceQuality "1"]
[TimeControl "40/5400+30:1800+30"]

1. e4 {[%emt 0:00:00]} c5 {[%emt 0:00:00]} 2. Nc3 {[%emt 0:00:00]} e6 {[%emt 0:00:00]} 3. g3 {[%emt 0:00:00]} d5 {[%emt 0:00:00]} 4. Bg2 {[%emt 0:00:00]} dxe4 {[%emt 0:00:56]} 5. Nxe4 {[%emt 0:00:00]} Nc6 {[%emt 0:00:13]} 6. d3 {[%emt 0:00:02]} Be7 {[%emt 0:00:38]} 7. Ne2 {[%emt 0:07:09]} Nf6 {[%emt 0:00:41]} 8. N2c3 {[%emt 0:02:36]} O-O {[%emt 0:12:40]} 9. Be3 {[%emt 0:01:27]} Nxe4 {[%emt 0:02:48]} 10. Nxe4 {[%emt 0:02:09]} f5 {[%emt 0:01:25]} 11. Nc3 {[%emt 0:09:26]} Qd7 {[%emt 0:03:23]} 12. Qd2 {[%emt 0:16:55]} b6 {[%emt 0:03:07]} 13. O-O-O {[%emt 0:02:31]} Bb7 {[%emt 0:02:30]} 14. f4 {[%emt 0:02:19]} Bf6 {[%emt 0:02:37]} 15. a3 {[%emt 0:04:55]} Nd4 {[%emt 0:06:46]} 16. Bxd4 {[%emt 0:03:59]} cxd4 {[%emt 0:00:55]} 17. Na2 {[%emt 0:00:42]} Rac8 {[%emt 0:02:49]} 18. Bxb7 {[%emt 0:01:50]} Qxb7 {[%emt 0:00:05]} 19. Qe2 {[%emt 0:00:05]} Rfe8 {[%emt 0:01:17]} 20. g4 {[%emt 0:00:27]} fxg4 {[%emt 0:00:33]} 21. Qxg4 {[%emt 0:00:11]} a5 {[%emt 0:10:20]} 22. Rhg1 {[%emt 0:05:42]} Qd5 {[%emt 0:08:37]} 23. Kb1 {[%emt 0:00:20]} b5 {[%emt 0:09:45]} 24. Nc1 {[%emt 0:00:20]} b4 {[%emt 0:01:18]} 25. axb4 {[%emt 0:02:58]} axb4 {[%emt 0:00:30]} 26. Rd2 {[%emt 0:00:07]} Ra8 {[%emt 0:01:43]} 27. Nb3 {[%emt 0:01:52]} Ra7 {[%emt 0:03:27]} 28. Re2 {[%emt 0:00:36]} Rae7 {[%emt 0:10:35]} 29. Re4 {[%emt 0:01:07]} e5 {[%emt 0:06:45]} 30. fxe5 {[%emt 0:02:00]} Rxe5 {[%emt 0:00:33]} 31. Rge1 {[%emt 0:00:50]} Rxe4 {[%emt 0:01:58]} 32. Rxe4 {[%emt 0:00:06]} Rxe4 {[%emt 0:00:38]} 33. Qxe4 {[%emt 0:00:07]} Qxe4 {[%emt 0:00:10]} 34. dxe4 {[%emt 0:00:06]} Be5 {[%emt 0:00:15]} 35. h3 {[%emt 0:00:05]} Kf7 {[%emt 0:02:00]} 36. Kc1 {[%emt 0:01:23]} g5 {[%emt 0:01:28]} 37. Kd2 {[%emt 0:00:26]} h5 {[%emt 0:00:30]} 38. Ke2 {[%emt 0:00:36]} Kg6 {[%emt 0:02:04]} 39. Kf3 {[%emt 0:00:12]} Kf6 {[%emt 0:01:26]} 40. Na5 {[%emt 0:00:00]} Bd6 {[%emt 0:00:00]} 41. b3 {[%emt 0:00:30]} Bc5 {[%emt 0:04:39]} 42. Nb7 {[%emt 0:00:57]} Be7 {[%emt 0:00:53]} 43. Na5 {[%emt 0:00:29]} Bc5 {[%emt 0:00:55]} 44. Nc4 {[%emt 0:00:52]} Ke6 {[%emt 0:00:59]} 45. Nb2 {[%emt 0:00:52]} Be7 {[%emt 0:04:24]} 46. Nc4 {[%emt 0:01:28]} Bd6 {[%emt 0:00:36]} 1/2-1/2

[Event "WYCC 2018 G14"]
[Site "Halkidiki"]
[Date "2018.10.22"]
[Round "4"]
[White "Gabbani, Sara"]
[Black "Mironenko, Galina"]
[Result "1/2-1/2"]
[ECO "B24"]
[WhiteElo "1764"]
[BlackElo "2053"]
[Annotator "NA"]
[PlyCount "60"]
[EventDate "2018.10.20"]
[EventType "swiss"]
[EventCountry "GRE"]
[SourceTitle "playchess.com"]
[Source "ChessBase"]
[SourceQuality "1"]
[TimeControl "40/5400+30:1800+30"]

1. e4 {[%emt 0:00:00]} c5 {[%emt 0:00:00]} 2. Nc3 {[%emt 0:00:00]} Nc6 {[%emt 0:00:00]} 3. Nf3 {[%emt 0:01:12]} g6 {[%emt 0:00:02]} 4. Bc4 {[%emt 0:01:43]} Bg7 {[%emt 0:01:54]} 5. a3 {[%emt 0:02:28]} a6 {[%emt 0:02:50]} 6. d3 {[%emt 0:01:31]} e6 {[%emt 0:02:58]} 7. O-O {[%emt 0:04:53]} Nge7 {[%emt 0:00:52]} 8. Be3 {[%emt 0:02:47]} Nd4 {[%emt 0:04:59]} 9. Bg5 {[%emt 0:08:43]} h6 {[%emt 0:06:40]} 10. Bh4 {[%emt 0:04:09]} O-O $11 {[%emt 0:04:05]} 11. Nxd4 {[%emt 0:04:13]} cxd4 {[%emt 0:06:28]} 12. Ne2 {[%emt 0:01:23]} g5 {[%emt 0:02:57]} 13. Bg3 {[%emt 0:00:16]} d5 {[%emt 0:01:10]} 14. exd5 {[%emt 0:06:22]} Nxd5 {[%emt 0:01:45]} 15. Bxd5 {[%emt 0:00:41]} Qxd5 {[%emt 0:00:28]} 16. f4 {[%emt 0:03:08]} b5 {[%emt 0:09:42]} 17. Qd2 {[%emt 0:04:30]} g4 {[%emt 0:03:39]} 18. f5 {[%emt 0:06:48]} exf5 {[%emt 0:07:54]} 19. Nf4 {[%emt 0:00:32]} Qc5 {[%emt 0:04:53]} 20. Rae1 {[%emt 0:07:50]} Bb7 {[%emt 0:03:23]} 21. Nh5 {[%emt 0:02:55]} Rac8 {[%emt 0:06:11]} 22. Nxg7 {[%emt 0:07:13]} Kxg7 {[%emt 0:01:39]} 23. Bf4 {[%emt 0:01:30]} Rh8 {[%emt 0:06:50]} 24. Re2 {[%emt 0:04:00]} Rc6 {[%emt 0:08:30]} 25. Rfe1 {[%emt 0:04:59]} Rhc8 {[%emt 0:03:17]} 26. Qc1 {[%emt 0:03:03]} Qd5 {[%emt 0:03:22]} 27. Rf1 {[%emt 0:06:37]} Re6 {[%emt 0:00:56]} 28. Rfe1 {[%emt 0:00:36]} Rec6 {[%emt 0:01:40]} 29. Rf1 {[%emt 0:01:49]} Re6 {[%emt 0:01:52]} 30. Rfe1 {[%emt 0:02:56]} Rec6 {[%emt 0:01:04]} 1/2-1/2

[Event "WYCC 2018 G14"]
[Site "Halkidiki"]
[Date "2018.10.22"]
[Round "4"]
[White "De Rycke, Tyani"]
[Black "Burdot, Clara"]
[Result "1-0"]
[ECO "B01"]
[WhiteElo "1758"]
[BlackElo "1472"]
[Annotator "NA"]
[PlyCount "93"]
[EventDate "2018.10.20"]
[EventType "swiss"]
[EventCountry "GRE"]
[SourceTitle "playchess.com"]
[Source "ChessBase"]
[SourceQuality "1"]
[TimeControl "40/5400+30:1800+30"]

1. e4 {[%emt 0:00:00]} d5 {[%emt 0:00:00]} 2. Nc3 {[%emt 0:00:00]} d4 {[%emt 0:00:00]} 3. Nce2 {[%emt 0:00:00]} e5 {[%emt 0:00:00]} 4. Ng3 {[%emt 0:00:00]} Be6 {[%emt 0:00:00]} 5. Bb5+ {[%emt 0:00:14]} c6 {[%emt 0:00:11]} 6. Ba4 {[%emt 0:00:05]} Nd7 {[%emt 0:00:36]} 7. d3 {[%emt 0:00:12]} f6 {[%emt 0:04:00]} 8. Bb3 {[%emt 0:01:25]} Nc5 {[%emt 0:02:08]} 9. Bxe6 {[%emt 0:01:30]} Nxe6 {[%emt 0:00:25]} 10. N1e2 {[%emt 0:00:11]} Bd6 {[%emt 0:08:49]} 11. Nf5 {[%emt 0:02:07]} Ne7 {[%emt 0:01:58]} 12. Neg3 {[%emt 0:00:30]} Nxf5 {[%emt 0:04:20]} 13. Nxf5 {[%emt 0:01:10]} Qd7 {[%emt 0:01:32]} 14. Qh5+ {[%emt 0:02:27]} Kd8 {[%emt 0:04:40]} 15. Qg4 {[%emt 0:01:05]} Kc7 {[%emt 0:01:49]} 16. Bd2 {[%emt 0:00:27]} Rag8 {[%emt 0:03:01]} 17. g3 {[%emt 0:04:52]} g6 {[%emt 0:08:08]} 18. Nxd6 {[%emt 0:02:24]} Qxd6 {[%emt 0:01:49]} 19. f4 {[%emt 0:02:09]} exf4 {[%emt 0:03:03]} 20. gxf4 {[%emt 0:00:15]} h5 {[%emt 0:05:20]} 21. Qf3 {[%emt 0:02:10]} g5 {[%emt 0:04:17]} 22. f5 {[%emt 0:00:37]} Nf4 {[%emt 0:01:17]} 23. O-O-O {[%emt 0:02:58]} h4 {[%emt 0:02:20]} 24. Bxf4 {[%emt 0:00:29]} Qxf4+ {[%emt 0:01:12]} 25. Qxf4+ {[%emt 0:00:08]} gxf4 {[%emt 0:00:04]} 26. Rdf1 {[%emt 0:00:10]} h3 {[%emt 0:03:47]} 27. Rxf4 {[%emt 0:02:15]} Rg2 {[%emt 0:00:40]} 28. Rf3 {[%emt 0:00:46]} Kd6 {[%emt 0:01:35]} 29. Rg3 {[%emt 0:05:04]} Rxg3 {[%emt 0:04:21]} 30. hxg3 {[%emt 0:01:11]} h2 {[%emt 0:01:21]} 31. Kd2 {[%emt 0:00:09]} Rh3 {[%emt 0:01:08]} 32. Ke2 {[%emt 0:00:27]} Rxg3 {[%emt 0:01:18]} 33. Rxh2 {[%emt 0:00:08]} Rg7 {[%emt 0:00:13]} 34. Kf3 {[%emt 0:00:35]} Ke5 {[%emt 0:01:13]} 35. Rh8 {[%emt 0:00:24]} Re7 {[%emt 0:01:02]} 36. Rd8 {[%emt 0:00:46]} Rh7 {[%emt 0:02:42]} 37. Re8+ {[%emt 0:03:08]} Kd6 {[%emt 0:00:21]} 38. Re6+ {[%emt 0:01:16]} Kd7 {[%emt 0:00:31]} 39. Rxf6 {[%emt 0:00:14]} Rh1 {[%emt 0:01:03]} 40. Rf7+ {[%emt 0:00:00]} Kc8 {[%emt 0:00:00]} 41. e5 {[%emt 0:00:42]} Re1 {[%emt 0:00:49]} 42. Re7 {[%emt 0:00:51]} Kd8 {[%emt 0:00:43]} 43. f6 {[%emt 0:00:16]} Rf1+ {[%emt 0:00:36]} 44. Ke4 {[%emt 0:00:09]} c5 {[%emt 0:00:37]} 45. Kd5 {[%emt 0:00:16]} Rf2 {[%emt 0:00:55]} 46. Kd6 {[%emt 0:00:24]} b6 {[%emt 0:00:33]} 47. f7 {[%emt 0:00:11]} 1-0

[Event "WYCC 2018 G14"]
[Site "Halkidiki"]
[Date "2018.10.22"]
[Round "4"]
[White "Kurmangaliyeva, Liya"]
[Black "Brunner, Sophia"]
[Result "1-0"]
[ECO "C15"]
[WhiteElo "1733"]
[BlackElo "1812"]
[Annotator "NA"]
[PlyCount "107"]
[EventDate "2018.10.20"]
[EventType "swiss"]
[EventCountry "GRE"]
[SourceTitle "playchess.com"]
[Source "ChessBase"]
[SourceQuality "1"]
[TimeControl "40/5400+30:1800+30"]

1. e4 {[%emt 0:00:00]} e6 {[%emt 0:00:00]} 2. d4 {[%emt 0:00:00]} d5 {[%emt 0:00:00]} 3. Nc3 {[%emt 0:00:00]} Bb4 {[%emt 0:00:00]} 4. exd5 {[%emt 0:00:00]} exd5 {[%emt 0:01:17]} 5. Bd3 {[%emt 0:00:02]} Be6 {[%emt 0:03:34]} 6. Nge2 {[%emt 0:02:17]} Nf6 {[%emt 0:16:42]} 7. O-O {[%emt 0:04:37]} O-O {[%emt 0:04:26]} 8. Nf4 {[%emt 0:11:58]} Re8 {[%emt 0:06:26]} 9. Nxe6 {[%emt 0:08:00]} Rxe6 {[%emt 0:00:14]} 10. Bg5 {[%emt 0:01:36]} c6 {[%emt 0:04:16]} 11. Qf3 {[%emt 0:07:29]} h6 {[%emt 0:10:50]} 12. Bh4 {[%emt 0:02:55]} g5 {[%emt 0:07:30]} 13. Bg3 {[%emt 0:01:31]} Bd6 {[%emt 0:11:52]} 14. Bf5 {[%emt 0:08:36]} Re8 {[%emt 0:01:23]} 15. Rae1 {[%emt 0:01:58]} Qc7 {[%emt 0:06:11]} 16. Rxe8+ {[%emt 0:06:37]} Nxe8 {[%emt 0:00:07]} 17. h4 {[%emt 0:08:03]} Ng7 {[%emt 0:07:17]} 18. Bd3 {[%emt 0:02:16]} Nd7 {[%emt 0:01:00]} 19. hxg5 {[%emt 0:01:02]} hxg5 {[%emt 0:00:07]} 20. Qg4 {[%emt 0:02:28]} Bxg3 {[%emt 0:07:41]} 21. fxg3 {[%emt 0:00:32]} f6 {[%emt 0:00:37]} 22. Qh3 {[%emt 0:01:25]} Kf7 {[%emt 0:04:40]} 23. Qh6 {[%emt 0:01:29]} Rg8 {[%emt 0:01:29]} 24. Bh7 {[%emt 0:01:01]} Qxg3 {[%emt 0:01:24]} 25. Qg6+ {[%emt 0:02:15]} Kf8 {[%emt 0:00:36]} 26. Bxg8 {[%emt 0:00:43]} Kxg8 {[%emt 0:00:03]} 27. Nd1 {[%emt 0:00:58]} Qg4 {[%emt 0:01:07]} 28. c3 {[%emt 0:01:44]} Qe6 {[%emt 0:00:24]} 29. Qd3 {[%emt 0:02:52]} Qe7 {[%emt 0:01:14]} 30. Ne3 {[%emt 0:01:25]} Qe6 {[%emt 0:00:56]} 31. b3 {[%emt 0:02:32]} Nf8 {[%emt 0:00:59]} 32. c4 {[%emt 0:01:21]} dxc4 {[%emt 0:00:16]} 33. bxc4 {[%emt 0:00:11]} Qd6 {[%emt 0:00:43]} 34. Ng4 {[%emt 0:00:45]} f5 {[%emt 0:00:14]} 35. c5 {[%emt 0:03:03]} Qe6 {[%emt 0:00:48]} 36. Ne3 {[%emt 0:01:37]} f4 {[%emt 0:00:21]} 37. Nc2 {[%emt 0:01:38]} Qd5 {[%emt 0:00:50]} 38. Re1 {[%emt 0:00:39]} Qd7 {[%emt 0:00:33]} 39. Nb4 {[%emt 0:01:09]} Nfe6 {[%emt 0:00:23]} 40. d5 {[%emt 0:00:00]} cxd5 {[%emt 0:00:00]} 41. Nxd5 {[%emt 0:03:17]} Qf7 {[%emt 0:04:45]} 42. Qc3 {[%emt 0:02:45]} Nf5 {[%emt 0:10:55]} 43. Qe5 {[%emt 0:03:11]} Nfd4 {[%emt 0:02:57]} 44. Nf6+ {[%emt 0:07:03]} Kf8 {[%emt 0:03:41]} 45. Rd1 {[%emt 0:07:33]} Nc6 {[%emt 0:01:06]} 46. Qc3 {[%emt 0:02:54]} Qe7 {[%emt 0:01:53]} 47. Nd7+ {[%emt 0:01:28]} Kg8 {[%emt 0:04:17]} 48. Qc2 {[%emt 0:01:35]} Qf7 {[%emt 0:02:28]} 49. Qe4 {[%emt 0:02:44]} Kh8 {[%emt 0:01:27]} 50. Rd6 {[%emt 0:01:44]} Ncd8 {[%emt 0:01:21]} 51. Qe5+ {[%emt 0:01:31]} Kg8 {[%emt 0:00:31]} 52. Nf6+ {[%emt 0:01:26]} Kf8 {[%emt 0:00:36]} 53. Rd7 {[%emt 0:00:17]} Qg6 {[%emt 0:00:11]} 54. Qd6# {[%emt 0:00:07]} 1-0

[Event "WYCC 2018 G14"]
[Site "Halkidiki"]
[Date "2018.10.22"]
[Round "4"]
[White "Hernandez Guerra, Luna Yue"]
[Black "Zhu, Evelyn"]
[Result "0-1"]
[ECO "A03"]
[WhiteElo "1659"]
[BlackElo "1926"]
[Annotator "NA"]
[PlyCount "68"]
[EventDate "2018.10.20"]
[EventType "swiss"]
[EventCountry "GRE"]
[SourceTitle "playchess.com"]
[Source "ChessBase"]
[SourceQuality "1"]
[TimeControl "40/5400+30:1800+30"]

1. f4 {[%emt 0:00:00]} d5 {[%emt 0:00:00]} 2. Nf3 {[%emt 0:00:00]} Bg4 {[%emt 0:00:00]} 3. e3 {[%emt 0:00:09]} Nd7 {[%emt 0:00:00]} 4. Be2 {[%emt 0:01:29]} Ngf6 {[%emt 0:00:04]} 5. Nc3 {[%emt 0:02:22]} c6 {[%emt 0:03:22]} 6. b3 {[%emt 0:03:17]} Bxf3 {[%emt 0:04:01]} 7. Bxf3 {[%emt 0:01:08]} e5 {[%emt 0:00:33]} 8. d3 {[%emt 0:02:49]} Bb4 {[%emt 0:05:04]} 9. Bd2 {[%emt 0:00:54]} Qe7 {[%emt 0:04:14]} 10. O-O {[%emt 0:08:56]} O-O-O {[%emt 0:10:01]} 11. Qe1 {[%emt 0:02:41]} Rde8 {[%emt 0:07:33]} 12. Qf2 {[%emt 0:13:49]} h5 {[%emt 0:08:10]} 13. h3 {[%emt 0:04:17]} Qd6 {[%emt 0:05:14]} 14. a3 {[%emt 0:12:08]} Bxa3 {[%emt 0:08:25]} 15. Nb1 {[%emt 0:00:36]} Bc5 {[%emt 0:01:37]} 16. fxe5 {[%emt 0:07:43]} Nxe5 {[%emt 0:00:34]} 17. Be2 {[%emt 0:04:00]} d4 {[%emt 0:05:40]} 18. Qf5+ {[%emt 0:06:25]} Ned7 {[%emt 0:04:07]} 19. Ra4 {[%emt 0:04:38]} dxe3 {[%emt 0:09:28]} 20. Bc3 {[%emt 0:01:06]} Rh6 {[%emt 0:01:15]} 21. d4 {[%emt 0:00:42]} Bb6 {[%emt 0:01:05]} 22. Na3 {[%emt 0:04:58]} Bc7 {[%emt 0:01:23]} 23. Rf4 {[%emt 0:02:10]} Qxf4 {[%emt 0:00:59]} 24. Qxf4 {[%emt 0:00:05]} Bxf4 {[%emt 0:00:02]} 25. Rxa7 {[%emt 0:01:19]} Bb8 {[%emt 0:01:22]} 26. Ra8 {[%emt 0:01:01]} Nb6 {[%emt 0:00:13]} 27. Ra5 {[%emt 0:00:05]} Nfd5 {[%emt 0:01:48]} 28. Be1 {[%emt 0:01:04]} Nf4 {[%emt 0:02:08]} 29. Bf3 {[%emt 0:00:23]} Rg6 {[%emt 0:01:19]} 30. c4 {[%emt 0:00:45]} Nd3 {[%emt 0:01:28]} 31. Nc2 {[%emt 0:01:13]} Nxe1 {[%emt 0:00:39]} 32. Nxe1 {[%emt 0:00:05]} Bg3 {[%emt 0:00:09]} 33. c5 {[%emt 0:02:35]} Bxe1 {[%emt 0:00:07]} 34. Ra1 {[%emt 0:00:13]} Bc3 {[%emt 0:00:15]} 0-1

[Event "WYCC 2018 G14"]
[Site "Halkidiki"]
[Date "2018.10.22"]
[Round "4"]
[White "Yellamraju, Ambica"]
[Black "Anghel, Maria"]
[Result "0-1"]
[ECO "D26"]
[WhiteElo "1647"]
[BlackElo "1801"]
[Annotator "NA"]
[PlyCount "73"]
[EventDate "2018.10.20"]
[EventType "swiss"]
[EventCountry "GRE"]
[SourceTitle "playchess.com"]
[Source "ChessBase"]
[SourceQuality "1"]
[TimeControl "40/5400+30:1800+30"]

1. d4 {[%emt 0:00:00]} d5 {[%emt 0:00:00]} 2. c4 {[%emt 0:00:00]} dxc4 {[%emt 0:00:00]} 3. Nf3 {[%emt 0:00:00]} Nf6 {[%emt 0:00:00]} 4. e3 {[%emt 0:00:00]} e6 {[%emt 0:00:13]} 5. Bxc4 {[%emt 0:00:09]} a6 {[%emt 0:00:11]} 6. O-O {[%emt 0:00:32]} Nbd7 {[%emt 0:00:27]} 7. Nbd2 {[%emt 0:01:48]} b5 {[%emt 0:01:05]} 8. Bd3 {[%emt 0:00:22]} c5 {[%emt 0:02:26]} 9. b3 {[%emt 0:06:03]} Bb7 {[%emt 0:02:20]} 10. a4 {[%emt 0:04:12]} b4 {[%emt 0:09:15]} 11. Bb2 {[%emt 0:08:32]} Be7 {[%emt 0:03:41]} 12. Qe2 {[%emt 0:19:02]} O-O {[%emt 0:02:16]} 13. Rac1 {[%emt 0:02:08]} cxd4 {[%emt 0:09:11]} 14. Nxd4 {[%emt 0:02:03]} Nc5 {[%emt 0:03:51]} 15. Bc4 {[%emt 0:02:08]} Qb6 {[%emt 0:07:50]} 16. N2f3 {[%emt 0:02:14]} Rfd8 {[%emt 0:06:15]} 17. Rfd1 {[%emt 0:01:09]} Rac8 {[%emt 0:02:35]} 18. Ne5 {[%emt 0:02:52]} Be4 {[%emt 0:16:32]} 19. Kh1 {[%emt 0:09:51]} Qb7 {[%emt 0:05:42]} 20. f3 {[%emt 0:02:38]} Bd5 {[%emt 0:00:42]} 21. e4 {[%emt 0:06:13]} Bxc4 {[%emt 0:01:21]} 22. Rxc4 {[%emt 0:03:28]} Nfd7 {[%emt 0:05:55]} 23. Rxb4 {[%emt 0:06:58]} Qa8 {[%emt 0:13:23]} 24. Nxd7 {[%emt 0:01:56]} Rxd7 {[%emt 0:01:13]} 25. Nc2 {[%emt 0:06:26]} Rxd1+ {[%emt 0:03:55]} 26. Qxd1 {[%emt 0:00:01]} Rd8 {[%emt 0:01:03]} 27. Rd4 {[%emt 0:03:01]} Nxb3 {[%emt 0:00:59]} 28. Rxd8+ {[%emt 0:02:21]} Qxd8 {[%emt 0:00:27]} 29. Qxd8+ {[%emt 0:02:16]} Bxd8 {[%emt 0:00:02]} 30. Ba3 {[%emt 0:00:45]} Bb6 {[%emt 0:01:16]} 31. Nb4 {[%emt 0:02:53]} Bc5 {[%emt 0:00:46]} 32. Nc2 {[%emt 0:01:35]} a5 {[%emt 0:00:35]} 33. Bxc5 {[%emt 0:02:11]} Nxc5 {[%emt 0:00:06]} 34. Nd4 {[%emt 0:00:19]} Kf8 {[%emt 0:00:46]} 35. Kg1 {[%emt 0:00:34]} Ke8 {[%emt 0:00:34]} 36. Kf2 {[%emt 0:00:37]} f6 {[%emt 0:00:32]} 37. Ke3 {[%emt 0:01:13]} 0-1

[Event "WYCC 2018 G14"]
[Site "Halkidiki"]
[Date "2018.10.22"]
[Round "4"]
[White "Arauco Celestino, Arianna Sofia"]
[Black "Rodriguez Redondo, Adhara"]
[Result "1/2-1/2"]
[ECO "A06"]
[WhiteElo "1610"]
[BlackElo "1911"]
[Annotator "NA"]
[PlyCount "144"]
[EventDate "2018.10.20"]
[EventType "swiss"]
[EventCountry "GRE"]
[SourceTitle "playchess.com"]
[Source "ChessBase"]
[SourceQuality "1"]
[TimeControl "40/5400+30:1800+30"]

1. Nf3 {[%emt 0:00:00]} d5 {[%emt 0:00:00]} 2. g3 {[%emt 0:00:00]} Nf6 {[%emt 0:00:01]} 3. Bg2 {[%emt 0:00:00]} Bg4 {[%emt 0:01:10]} 4. c4 {[%emt 0:00:36]} c6 {[%emt 0:02:47]} 5. Qb3 {[%emt 0:11:19]} Qc7 {[%emt 0:07:05]} 6. d4 {[%emt 0:03:09]} Nbd7 {[%emt 0:08:35]} 7. Bf4 {[%emt 0:03:03]} Qb6 {[%emt 0:01:36]} 8. c5 {[%emt 0:01:16]} Qxb3 {[%emt 0:04:31]} 9. axb3 {[%emt 0:00:10]} Nh5 {[%emt 0:03:21]} 10. Bc7 {[%emt 0:01:13]} Bf5 {[%emt 0:14:20]} 11. O-O {[%emt 0:02:36]} h6 {[%emt 0:04:00]} 12. Nbd2 {[%emt 0:15:22]} g5 {[%emt 0:08:41]} 13. b4 {[%emt 0:09:30]} Bg7 {[%emt 0:04:20]} 14. Ra5 {[%emt 0:02:55]} O-O {[%emt 0:06:18]} 15. h3 {[%emt 0:15:20]} Rfc8 {[%emt 0:02:08]} 16. g4 {[%emt 0:02:53]} Rxc7 {[%emt 0:00:22]} 17. gxf5 {[%emt 0:00:35]} Nf4 {[%emt 0:04:57]} 18. e3 {[%emt 0:02:05]} Nxg2 {[%emt 0:08:06]} 19. Kxg2 {[%emt 0:00:09]} a6 {[%emt 0:02:24]} 20. h4 {[%emt 0:06:52]} gxh4 {[%emt 0:02:44]} 21. Kh3 {[%emt 0:02:37]} Kh7 {[%emt 0:04:03]} 22. Raa1 {[%emt 0:01:05]} Rg8 {[%emt 0:01:32]} 23. Rg1 {[%emt 0:00:12]} e5 {[%emt 0:04:38]} 24. Kxh4 {[%emt 0:00:28]} exd4 {[%emt 0:02:25]} 25. exd4 {[%emt 0:00:27]} Re8 {[%emt 0:01:24]} 26. Rae1 {[%emt 0:01:51]} Rcc8 {[%emt 0:00:45]} 27. Kg3 {[%emt 0:01:09]} Nf6 {[%emt 0:00:42]} 28. Rh1 {[%emt 0:01:24]} Kg8 {[%emt 0:00:30]} 29. Kf4 {[%emt 0:01:02]} Kf8 {[%emt 0:00:31]} 30. Ne5 {[%emt 0:00:44]} Re7 {[%emt 0:00:29]} 31. Kg3 {[%emt 0:02:48]} Rce8 {[%emt 0:00:30]} 32. f4 {[%emt 0:00:19]} Rc7 {[%emt 0:00:31]} 33. Kf3 {[%emt 0:00:17]} Ng8 {[%emt 0:00:31]} 34. Rhg1 {[%emt 0:01:12]} Ne7 {[%emt 0:00:29]} 35. Kg4 {[%emt 0:01:12]} h5+ {[%emt 0:00:24]} 36. Kxh5 {[%emt 0:01:02]} Nxf5 {[%emt 0:00:09]} 37. Ndf3 {[%emt 0:02:12]} Re6 {[%emt 0:00:57]} 38. Kg5 {[%emt 0:02:05]} Ne7 {[%emt 0:00:29]} 39. Kg4 {[%emt 0:01:22]} Ng8 {[%emt 0:00:32]} 40. Re2 {[%emt 0:00:00]} Nh6+ {[%emt 0:00:00]} 41. Kg3 {[%emt 0:06:21]} Rf6 {[%emt 0:05:10]} 42. Rge1 {[%emt 0:03:00]} Nf5+ {[%emt 0:03:46]} 43. Kf2 {[%emt 0:04:07]} Ne7 {[%emt 0:03:10]} 44. Ke3 {[%emt 0:05:25]} Bh6 {[%emt 0:04:27]} 45. Ng5 {[%emt 0:01:45]} Bxg5 {[%emt 0:07:58]} 46. fxg5 {[%emt 0:00:09]} Rf5 {[%emt 0:00:51]} 47. Nf3 {[%emt 0:06:40]} Ng6 {[%emt 0:00:58]} 48. Kf2 {[%emt 0:00:26]} Nh4 {[%emt 0:01:02]} 49. Re8+ {[%emt 0:08:55]} Kg7 {[%emt 0:00:08]} 50. R1e3 {[%emt 0:00:07]} Nxf3 {[%emt 0:00:10]} 51. Rxf3 {[%emt 0:00:05]} Rxg5 {[%emt 0:00:15]} 52. Ke3 {[%emt 0:00:11]} Rg2 {[%emt 0:05:18]} 53. b3 {[%emt 0:03:33]} Rg6 {[%emt 0:02:41]} 54. Rh3 {[%emt 0:02:13]} Rd7 {[%emt 0:01:10]} 55. Kf4 {[%emt 0:00:24]} Kf6 {[%emt 0:00:41]} 56. Rh5 {[%emt 0:00:46]} Rg1 {[%emt 0:00:43]} 57. Rf5+ {[%emt 0:00:53]} Kg7 {[%emt 0:00:27]} 58. Rh5 {[%emt 0:00:38]} Rf1+ {[%emt 0:00:26]} 59. Kg4 {[%emt 0:00:08]} Rg1+ {[%emt 0:00:33]} 60. Kf4 {[%emt 0:00:12]} Rf1+ {[%emt 0:00:11]} 61. Kg4 {[%emt 0:00:08]} Rg1+ {[%emt 0:00:03]} 62. Kf4 {[%emt 0:00:07]} Rg2 {[%emt 0:01:23]} 63. Rhh8 {[%emt 0:01:18]} Rf2+ {[%emt 0:00:25]} 64. Kg4 {[%emt 0:00:18]} Rd2 {[%emt 0:00:31]} 65. Kf5 {[%emt 0:00:39]} Rf2+ {[%emt 0:00:25]} 66. Kg5 {[%emt 0:00:58]} Rg2+ {[%emt 0:00:22]} 67. Kf5 {[%emt 0:00:14]} Rf2+ {[%emt 0:00:05]} 68. Kg5 {[%emt 0:00:06]} Rg2+ {[%emt 0:01:02]} 69. Kf5 {[%emt 0:00:05]} Rf2+ {[%emt 0:00:08]} 70. Kg5 f6+ 71. Kg4 f5+ 72. Kg3 Rb2 1/2-1/2

[Event "WYCC 2018 G14"]
[Site "Halkidiki"]
[Date "2018.10.22"]
[Round "4"]
[White "Saraci, Rinesa"]
[Black "Allahverdiyeva, Ayan"]
[Result "0-1"]
[ECO "B40"]
[WhiteElo "1138"]
[BlackElo "2116"]
[Annotator "NA"]
[PlyCount "84"]
[EventDate "2018.10.20"]
[EventType "swiss"]
[EventCountry "GRE"]
[SourceTitle "playchess.com"]
[Source "ChessBase"]
[SourceQuality "1"]
[TimeControl "40/5400+30:1800+30"]

1. e4 {[%emt 0:00:00]} c5 {[%emt 0:00:00]} 2. Nf3 {[%emt 0:00:00]} e6 {[%emt 0:00:00]} 3. Bc4 {[%emt 0:00:36]} Nc6 {[%emt 0:04:47]} 4. O-O {[%emt 0:02:08]} d6 {[%emt 0:00:36]} 5. d3 {[%emt 0:01:03]} Be7 {[%emt 0:02:41]} 6. Nc3 {[%emt 0:01:59]} Nf6 {[%emt 0:00:23]} 7. Bg5 {[%emt 0:03:18]} h6 {[%emt 0:00:43] B50: Sicilian: 2...d6, Miscellaneous} (7... O-O 8. Rb1 a6 9. a4 h6 10. Bh4 Bd7 11. Re1 Qc7 12. Ra1 Rfe8 13. h3 Qb6 14. Qc1 Nd4 15. Nxd4 cxd4 {0-1 (27) Onem,C (2283)-Goze,T (2437) ICCF email 2007}) 8. Bh4 {[%emt 0:02:02]} a6 {[%emt 0:00:50]} 9. a3 {[%emt 0:04:01]} O-O {[%emt 0:01:10]} 10. Re1 {[%emt 0:01:50]} Bd7 $146 {[%emt 0:01:42]} ({Predecessor:} 10... b5 11. Bb3 Bb7 12. h3 Qb6 13. Bg3 Rac8 14. Qd2 Nd7 15. Ne2 {0-1 (50) Zehendner,M (1773)-Joachimsthaler,K (1810) GER email 2011}) 11. Qe2 {[%emt 0:02:59]} b5 {[%emt 0:08:02]} 12. Ba2 {[%emt 0:03:49]} Qb6 {[%emt 0:00:33]} 13. Bg3 {[%emt 0:04:52]} a5 {[%emt 0:02:41]} 14. e5 {[%emt 0:07:38]} dxe5 {[%emt 0:00:48]} 15. Nxe5 {[%emt 0:04:02]} Nd4 {[%emt 0:08:08]} 16. Qd1 {[%emt 0:04:39]} b4 {[%emt 0:01:26]} 17. Ne2 {[%emt 0:03:59]} Ba4 {[%emt 0:01:07]} 18. Nxd4 {[%emt 0:01:26]} cxd4 {[%emt 0:00:08]} 19. axb4 $11 {[%emt 0:03:35]} axb4 {[%emt 0:01:10]} 20. Bc4 {[%emt 0:01:39]} Rfc8 {[%emt 0:06:22]} 21. b3 {[%emt 0:01:41]} Be8 {[%emt 0:00:20]} 22. Qf3 {[%emt 0:05:24]} Ra3 {[%emt 0:01:46]} 23. Rec1 {[%emt 0:08:47]} Qa7 {[%emt 0:00:19]} 24. Qd1 {[%emt 0:03:40]} Ra8 {[%emt 0:00:33]} 25. Rab1 {[%emt 0:00:46]} Ra2 {[%emt 0:00:29]} 26. h3 {[%emt 0:01:32]} Nd5 {[%emt 0:05:42]} 27. Bxd5 {[%emt 0:01:52]} exd5 {[%emt 0:00:17]} 28. Qe2 {[%emt 0:01:26]} Qc5 {[%emt 0:00:31]} 29. h4 {[%emt 0:02:34]} Bf6 {[%emt 0:12:49]} 30. Nf3 {[%emt 0:01:22]} Bd7 {[%emt 0:01:04]} 31. Ne1 Qa5 32. Qd1 Be6 33. Kh1 Qd8 34. Nf3 Bg4 35. Kg1 Rc8 36. Ra1 Ra3 37. Qd2 Bxf3 38. gxf3 Bxh4 39. Bxh4 Qxh4 40. Rxa3 bxa3 41. Qa5 Qg5+ 42. Kh2 Qxc1 0-1